bitfinex/quotes_SOLUSD_20220311
["timestamp","ask_amount","ask_price","bid_price","bid_amount"]
[1647004408352,9.06347957,83.079,83.014,60.61960946]
[1647004408550,3.04447957,83.078,83.014,60.61960946]
[1647004408751,126.219,83.077,83.014,60.61960946]
[1647004409154,8.33132962,83.069,83.014,60.61960946]
[1647004409555,6.019,83.075,83.014,60.61960946]
[1647004409753,6.019,83.085,83.015,120.2]
[1647004409956,23.1211,83.086,83.016,23.6764]
[1647004410359,3.04447957,83.084,83.014,60.61960946]
[1647004410554,28.33068707,83.083,83.014,60.61960946]
[1647004410956,3.04447957,83.082,83.014,60.61960946]
[1647004411156,18.0617,83.08,83.015,23.6764]
[1647004411359,6.019,83.079,83.015,23.6764]
[1647004411562,9.06347957,83.079,83.015,23.6764]
[1647004411758,3.04447957,83.078,83.015,23.6764]
[1647004412358,18.0632,83.07,83.015,23.6764]
[1647004412560,6.94457551,83.069,83.015,23.6764]
[1647004413161,3.04447957,83.068,83.015,23.6764]
[1647004414568,120.2,83.059,82.974,18.41632789]
[1647004414766,3.04447957,83.068,82.931,79.5637]
[1647004414767,120.2,83.057,82.975,65.67052897]
[1647004414962,120.2,83.049,82.953,22.6463]
[1647004415197,120.2,83.047,82.953,22.6463]
[1647004415363,120.2,83.045,82.953,22.6463]
[1647004415565,120.2,83.045,82.954,12.01918749]
[1647004415767,120.2,83.039,82.954,12.01918749]
[1647004415964,14.42,83.03,82.955,47.50260967]
[1647004416169,21.34465562,83.028,82.955,47.50260967]
[1647004416370,21.34465562,83.028,82.951,43.05733044]
[1647004416371,6.024,83.027,82.956,12.01918749]
[1647004416771,18.0861,82.97,82.941,12.01918749]
[1647004416969,14.42,83.0,82.941,12.01918749]
[1647004417369,7.91160696,82.977,82.941,12.01918749]
[1647004417569,7.91160696,82.977,82.901,23.32]
[1647004417969,7.91160696,82.977,82.91,18.0837]
[1647004418175,7.91160696,82.977,82.901,23.32]
[1647004418176,13.42160696,82.977,82.901,23.32]
[1647004418376,3.04447957,82.976,82.902,61.85257349]
[1647004418571,3.04447957,82.976,82.891,24.7106]
[1647004418974,6.027,82.975,82.891,24.7106]
[1647004419173,6.027,82.975,82.898,17.8481]
[1647004419174,18.0876,82.96,82.898,17.8481]
[1647004419373,6.027,82.959,82.898,17.8481]
[1647004419571,6.027,82.959,82.899,64.45474856]
[1647004419772,3.04447957,82.959,82.899,64.45474856]
[1647004419971,3.04447957,82.958,82.899,64.45474856]
[1647004420171,3.04447957,82.978,82.9,18.0787]
[1647004420378,3.04447957,82.978,82.901,6.0]
[1647004420571,28.90347459,82.977,82.901,6.0]
[1647004420773,28.90347459,82.977,82.9,23.9977]
[1647004421174,3.04447957,82.976,82.9,23.9977]
[1647004421372,6.027,82.975,82.9,23.9977]
[1647004421672,14.42,82.97,82.899,64.45474856]
[1647004421870,6.027,82.969,82.899,64.45474856]
[1647004422077,9.07147957,82.969,82.899,64.45474856]
[1647004422272,3.04447957,82.968,82.94,0.00584306]
[1647004422471,30.6716,82.967,82.94,0.00584306]
[1647004422700,24.6446,82.967,82.94,0.00584306]
[1647004422874,3.04447957,82.966,82.94,0.00584306]
[1647004424474,6.37978799,82.964,82.94,0.00584306]
[1647004424774,14.42,82.96,82.94,0.00584306]
[1647004425379,9.07147957,82.959,82.94,0.00584306]
[1647004425578,21.56375175,82.959,82.94,0.00584306]
[1647004425778,3.04447957,82.958,82.94,0.00584306]
[1647004426175,18.51927218,82.959,82.94,0.00584306]
[1647004426376,14.42,82.96,82.94,0.00584306]
[1647004426580,12.48965878,82.957,82.94,0.00584306]
[1647004426977,3.04447957,82.956,82.94,0.00584306]
[1647004427377,6.027,82.988,82.94,0.00584306]
[1647004427584,12.48349888,82.984,82.94,0.00584306]
[1647004427983,6.026,83.009,82.94,0.00584306]
[1647004428178,12.48483411,83.012,82.94,0.00584306]
[1647004428978,14.42,83.01,82.94,0.00584306]
[1647004429380,52.2681,83.009,82.94,0.00584306]
[1647004429580,105.25716795,83.009,82.94,0.00584306]
[1647004429779,60.3194,82.98,82.94,0.00584306]
[1647004429983,14.42,82.97,82.94,0.00584306]
[1647004430208,46.2431,82.969,82.94,0.00584306]
[1647004430381,6.027,82.968,82.94,0.00584306]
[1647004430583,49.28757957,82.969,82.94,0.00584306]
[1647004430584,99.23216795,82.969,82.94,0.00584306]
[1647004430782,23.24585781,82.967,82.832,7.0]
[1647004430981,60.3594,82.93,82.832,7.0]
[1647004431182,60.3594,82.93,82.812,48.1543]
[1647004431183,14.42,82.92,82.812,48.1543]
[1647004431381,10.0,82.918,82.8,79.52998831]
[1647004431684,180.26,82.91,82.8,79.52998831]
[1647004431883,14.42,82.9,82.8,79.52998831]
[1647004432281,22.76688432,82.898,82.801,47.62814706]
[1647004432483,6.035,82.897,82.801,47.62814706]
[1647004432681,55.73437957,82.897,82.801,47.62814706]
[1647004432883,60.92437957,82.897,82.801,47.62814706]
[1647004433187,9.30228765,82.896,82.801,47.62814706]
[1647004433383,6.035,82.895,82.802,6.0]
[1647004433585,14.42,82.88,82.802,6.0]
[1647004433789,5.83968287,82.878,82.802,6.0]
[1647004433983,14.42,82.88,82.802,6.0]
[1647004434193,14.42,82.9,82.803,34.53559201]
[1647004434384,6.034,82.939,82.804,52.7409]
[1647004434586,6.25932695,82.924,82.804,87.27649201]
[1647004434784,14.42,82.91,82.81,18.0965]
[1647004434987,22.76547482,82.908,82.805,3.04447957]
[1647004435186,6.034,82.907,82.805,3.04447957]
[1647004435790,3.04447957,82.906,82.805,3.04447957]
[1647004435984,6.034,82.905,82.805,3.04447957]
[1647004436386,6.034,82.905,82.806,6.0]
[1647004436787,6.034,82.907,82.807,3.04447957]
[1647004436986,22.76547482,82.908,82.808,6.0]
[1647004437187,3.04447957,82.906,82.808,6.0]
[1647004437387,6.034,82.905,82.804,46.7409]
[1647004437586,6.034,82.905,82.805,6.0]
[1647004437787,3.04447957,82.904,82.805,6.0]
[1647004437988,6.034,82.903,82.805,6.0]
[1647004438186,14.42,82.9,82.805,6.0]
[1647004438390,6.034,82.899,82.805,37.49111244]
[1647004438589,30.3725,82.899,82.805,37.49111244]
[1647004438789,24.3385,82.899,82.806,3.04447957]
[1647004438994,24.3385,82.899,82.807,6.0]
[1647004439190,14.42,82.9,82.807,37.49111244]
[1647004439393,3.04447957,82.911,82.808,3.04447957]
[1647004439593,3.04447957,82.911,82.81,18.0978]
[1647004439793,3.04447957,82.911,82.811,6.0]
[1647004440092,14.42,82.91,82.811,6.0]
[1647004440290,27.68226095,82.909,82.811,6.0]
[1647004440893,24.9343,82.908,82.811,6.0]
[1647004441093,27.97877957,82.908,82.811,6.0]
[1647004441696,24.9343,82.908,82.82,18.0964]
[1647004441892,24.9343,82.908,82.821,29.3317]
[1647004442194,24.9343,82.908,82.821,32.37617957]
[1647004442494,3.04447957,82.931,82.822,32.18701201]
[1647004442693,6.033,82.929,82.824,5.12258019]
[1647004442894,45.3885143,83.033,82.83,18.0945]
[1647004442895,21.42856154,82.948,82.83,18.0945]
[1647004443093,6.032,82.947,82.831,6.0]
[1647004443293,21.42856154,82.948,82.851,56.17435531]
[1647004443497,21.42856154,82.948,82.86,14.42]
[1647004443695,6.031,82.947,82.86,14.42]
[1647004443900,6.031,82.947,82.861,6.0]
[1647004444095,21.39990271,82.965,82.861,6.0]
[1647004444096,6.031,82.958,82.861,6.0]
[1647004444299,6.031,82.958,82.862,24.6981]
[1647004444495,6.03,82.969,82.863,6.0]
[1647004444897,24.53668865,82.968,82.864,63.53187271]
[1647004445096,6.03,82.967,82.87,18.0864]
[1647004445299,30.9235,82.967,82.88,14.42]
[1647004445599,30.9235,82.967,82.881,6.0]
[1647004446100,30.9235,82.967,82.88,20.97]
[1647004446297,20.75869156,82.966,82.881,52.1934181]
[1647004446596,6.029,82.965,82.881,52.1934181]
[1647004446798,9.07347957,82.965,82.881,52.1934181]
[1647004447297,9.07347957,82.965,82.882,6.0]
[1647004448503,3.04447957,82.964,82.882,6.0]
[1647004448705,6.029,82.963,82.882,6.0]
[1647004449105,3.04447957,82.964,82.882,6.0]
[1647004450306,6.029,82.963,82.882,6.0]
[1647004450505,6.029,82.963,82.881,52.1934181]
[1647004450708,3.04447957,82.962,82.88,6.55]
[1647004450909,14.42,82.96,82.88,6.55]
[1647004451106,18.0977,82.95,82.88,6.55]
[1647004451415,14.42,82.94,82.81,14.42]
[1647004451609,6.032,82.939,82.826,47.5068]
[1647004451807,7.84787563,82.938,82.826,97.62415931]
[1647004452006,6.032,82.937,82.826,97.62415931]
[1647004452206,18.1039,82.92,82.826,97.62415931]
[1647004452506,51.47899156,82.919,82.826,97.62415931]
[1647004452708,54.52347113,82.919,82.827,6.0]
[1647004452906,48.49047113,82.919,82.827,6.0]
[1647004453108,3.04447957,82.918,82.827,6.0]
[1647004453606,20.75869156,82.919,82.827,6.0]
[1647004453809,20.75869156,82.919,82.83,14.42]
[1647004454010,20.75869156,82.919,82.831,6.0]
[1647004454209,20.75869156,82.919,82.831,38.18701201]
[1647004454409,23.4485,82.957,82.832,29.14253244]
[1647004454610,23.4485,82.957,82.833,6.0]
[1647004454810,23.4485,82.957,82.833,9.04447957]
[1647004455008,23.4485,82.957,82.85,18.0888]
[1647004455009,3.04447957,82.956,82.85,18.0888]
[1647004455210,6.031,82.955,82.851,28.5478]
[1647004455411,27.06751907,82.954,82.852,62.62754372]
[1647004455608,6.031,82.953,82.852,62.62754372]
[1647004455811,6.031,82.953,82.853,22.5032]
[1647004456009,9.07547957,82.953,82.853,22.5032]
[1647004456211,3.04447957,82.952,82.853,22.5032]
[1647004456512,14.42,82.95,82.853,22.5032]
[1647004456709,6.031,82.949,82.853,22.5032]
[1647004456910,9.07547957,82.949,82.853,22.5032]
[1647004457112,14.42,82.95,82.853,22.5032]
[1647004457310,1.53904812,82.929,82.853,22.5032]
[1647004457510,6.032,82.928,82.853,22.5032]
[1647004457709,9.07647957,82.928,82.853,22.5032]
[1647004458210,3.04447957,82.927,82.853,22.5032]
[1647004458414,6.032,82.926,82.853,22.5032]
[1647004458910,3.04447957,82.925,82.853,22.5032]
[1647004459118,32.521,82.92,82.854,54.04633275]
[1647004459312,6.032,82.919,82.854,54.04633275]
[1647004459612,3.04447957,82.925,82.854,54.04633275]
[1647004460240,1.53904812,82.929,82.86,18.0915]
[1647004460412,4.91,82.932,82.86,18.0915]
[1647004461016,4.91,82.932,82.854,54.04633275]
[1647004461416,20.67385049,82.931,82.854,54.04633275]
[1647004462216,6.031,82.93,82.854,54.04633275]
[1647004462416,20.67385049,82.931,82.854,54.04633275]
[1647004462818,20.67385049,82.931,82.822,0.00447957]
[1647004463019,3.04447957,82.854,82.764,12.60028222]
[1647004463220,14.42,82.88,82.728,7.0]
[1647004463419,72.05,82.852,82.728,7.0]
[1647004463618,72.05,82.839,82.728,7.0]
[1647004463820,14.42,82.84,82.728,7.0]
[1647004463821,72.05,82.837,82.729,56.83669734]
[1647004464425,55.04134552,82.838,82.73,47.2564]
[1647004465025,55.04134552,82.838,82.731,6.0]
[1647004465426,72.05,82.829,82.731,6.0]
[1647004465628,14.42,82.83,82.731,6.0]
[1647004466026,14.42,82.83,82.739,12.49566961]
[1647004466229,14.42,82.83,82.74,6.0]
[1647004466428,14.42,82.83,82.731,6.0]
[1647004466831,72.05,82.828,82.731,6.0]
[1647004467027,20.67385049,82.819,82.731,6.0]
[1647004468546,6.037,82.818,82.731,6.0]
[1647004468947,32.5402,82.82,82.731,6.0]
[1647004469145,14.42,82.82,82.731,6.0]
[1647004469946,58.54587891,82.819,82.731,6.0]
[1647004470344,58.54587891,82.819,82.74,18.1167]
[1647004470545,64.81587891,82.819,82.742,25.86810663]
[1647004470745,64.81587891,82.819,82.743,6.0]
[1647004471145,6.27,82.819,82.743,6.0]
[1647004471345,14.42,82.82,82.77,18.1117]
[1647004471548,14.42,82.82,82.743,6.0]
[1647004471749,72.05,82.819,82.742,25.86810663]
[1647004471951,72.05,82.819,82.742,24.04443173]
[1647004472150,56.01680326,82.818,82.742,24.04443173]
[1647004472551,14.42,82.82,82.742,22.04443173]
[1647004472749,6.04,82.851,82.75,18.1153]
[1647004472949,14.42,82.85,82.75,18.1153]
[1647004473149,14.42,82.85,82.751,123.24447957]
[1647004473549,14.42,82.85,82.752,6.0]
[1647004474150,14.42,82.85,82.78,18.1081]
[1647004474553,72.05,82.849,82.781,56.83669734]
[1647004475351,14.42,82.85,82.781,56.83669734]
[1647004475352,72.05,82.847,82.781,56.83669734]
[1647004475554,78.087,82.846,82.781,56.83669734]
[1647004475754,72.05,82.846,82.781,56.83669734]
[1647004476552,72.05,82.845,82.781,56.83669734]
[1647004476752,72.05,82.839,82.781,56.83669734]
[1647004477955,64.04415912,82.846,82.781,56.83669734]
[1647004478155,14.42,82.85,82.781,56.83669734]
[1647004478355,72.05,82.849,82.781,56.83669734]
[1647004478556,14.42,82.85,82.781,56.83669734]
[1647004478557,72.05,82.845,82.781,56.83669734]
[1647004478755,72.05,82.839,82.781,56.83669734]
[1647004478956,29.87600693,82.878,82.781,56.83669734]
[1647004479158,72.05,82.859,82.781,56.83669734]
[1647004479355,72.05,82.859,82.79,18.1084]
[1647004480157,14.42,82.86,82.79,18.1084]
[1647004480359,75.09447957,82.887,82.79,18.1084]
[1647004480659,6.035,82.892,82.81,18.1008]
[1647004480858,6.25778565,82.893,82.81,18.1008]
[1647004481059,6.25778565,82.893,82.811,9.04447957]
[1647004481258,4.69,82.914,82.812,22.04443173]
[1647004481458,6.034,82.913,82.82,14.42]
[1647004481669,4.69,82.914,82.83,18.09]
[1647004481861,4.69,82.914,82.831,6.0]
[1647004482062,4.69,82.914,82.82,60.2998]
[1647004482063,6.033,82.913,82.82,60.2998]
[1647004482264,72.05,82.912,82.821,9.04447957]
[1647004482461,72.05,82.91,82.821,6.0]
[1647004482660,58.17048251,82.911,82.821,6.0]
[1647004482961,58.17048251,82.911,82.822,3.04447957]
[1647004483159,58.17048251,82.911,82.823,6.0]
[1647004483365,4.69,82.914,82.823,6.0]
[1647004483561,4.69,82.914,82.83,18.1]
[1647004483762,6.033,82.913,82.83,18.1]
[1647004483960,6.033,82.913,82.831,6.0]
[1647004484361,6.033,82.913,82.832,46.59712481]
[1647004484560,4.69,82.914,82.85,18.0947]
[1647004484966,4.69,82.914,82.851,6.0]
[1647004485161,31.49389077,82.978,82.851,6.0]
[1647004485361,6.031,82.956,82.852,27.59400426]
[1647004485560,6.031,82.956,82.853,6.0]
[1647004485760,31.48819378,82.978,82.86,18.0843]
[1647004485960,72.05,82.965,82.861,6.0]
[1647004486160,72.05,82.963,82.861,6.0]
[1647004486362,72.05,82.961,82.861,6.0]
[1647004486766,20.45,82.96,82.87,18.0908]
[1647004486962,6.03,82.968,82.871,6.0]
[1647004487571,6.03,82.968,82.856,6.0]
[1647004487963,18.0887,82.96,82.88,18.0851]
[1647004488163,72.05,82.959,82.882,46.59712481]
[1647004488565,6.029,82.966,82.882,46.59712481]
[1647004488566,6.029,82.958,82.882,46.59712481]
[1647004488763,62.03605489,82.967,82.882,46.59712481]
[1647004489366,18.0885,82.96,82.882,46.59712481]
[1647004489565,62.03605489,82.967,82.882,46.59712481]
[1647004489566,85.85339515,82.967,82.882,46.59712481]
[1647004490369,18.0905,82.95,82.882,46.59712481]
[1647004490767,22.19281602,82.949,82.882,46.59712481]
[1647004491168,23.0541,82.969,82.882,46.59712481]
[1647004491971,6.029,82.968,82.882,46.59712481]
[1647004492171,51.09087604,82.967,82.89,18.086]
[1647004492476,6.029,82.966,82.89,18.086]
[1647004493673,51.09087604,82.967,82.89,18.086]
[1647004494096,18.0874,82.96,82.89,18.086]
[1647004495203,72.05,82.959,82.89,18.086]
[1647004496002,72.05,82.939,82.882,46.59712481]
[1647004496205,72.05,82.937,82.882,46.59712481]
[1647004497304,18.0906,82.95,82.883,120.2]
[1647004497505,22.5696,82.957,82.883,120.2]
[1647004497807,22.5696,82.957,82.882,46.59712481]
[1647004498003,61.16192635,82.956,82.882,46.59712481]
[1647004498706,6.029,82.955,82.882,46.59712481]
[1647004498905,120.2,82.949,82.882,46.59712481]
[1647004499104,120.2,82.947,82.837,7.0]
[1647004499304,120.2,82.945,82.838,6.0]
[1647004499505,120.2,82.929,82.838,6.0]
[1647004499706,120.2,82.923,82.835,48.5738]
[1647004499905,192.25,82.919,82.83,18.1007]
[1647004500106,192.25,82.917,82.831,52.47593506]
[1647004500507,192.25,82.915,82.831,52.47593506]
[1647004500708,192.25,82.913,82.831,52.47593506]
[1647004500904,192.25,82.909,82.831,52.47593506]
[1647004501105,192.25,82.899,82.831,52.47593506]
[1647004501305,72.05,82.895,82.831,52.47593506]
[1647004502410,18.1021,82.89,82.831,52.47593506]
[1647004502813,72.05,82.895,82.831,52.47593506]
[1647004503014,72.05,82.893,82.831,52.47593506]
[1647004503314,6.034,82.894,82.777,97.9365]
[1647004503315,72.05,82.887,82.777,97.9365]
[1647004503513,72.05,82.879,82.79,18.1098]
[1647004503913,72.05,82.877,82.79,18.1098]
[1647004504114,24.44450776,82.874,82.791,50.88535808]
[1647004504313,72.05,82.873,82.791,50.88535808]
[1647004504713,72.05,82.869,82.8,18.106]
[1647004505817,72.05,82.872,82.791,50.88535808]
[1647004506017,72.05,82.87,82.791,50.88535808]
[1647004506821,72.05,82.87,82.8,18.1076]
[1647004507019,72.05,82.873,82.801,120.2]
[1647004507416,72.05,82.873,82.793,120.2]
[1647004507617,72.05,82.873,82.794,6.0]
[1647004508023,72.05,82.869,82.792,22.9995]
[1647004508320,72.05,82.867,82.792,22.9995]
[1647004508521,72.05,82.865,82.791,50.88535808]
[1647004508719,53.42285259,82.872,82.748,12.49791561]
[1647004508720,72.05,82.859,82.748,12.49791561]
[1647004508918,72.05,82.849,82.749,49.5538]
[1647004509120,72.05,82.829,82.749,49.5538]
[1647004509320,72.05,82.829,82.75,12.06874511]
[1647004509520,72.05,82.829,82.751,120.2]
[1647004509723,23.8177,82.847,82.75,15.11322468]
[1647004509724,30.80601832,82.839,82.753,120.2]
[1647004509922,23.8177,82.847,82.753,120.2]
[1647004510119,23.8177,82.847,82.761,120.2]
[1647004510526,23.8177,82.847,82.763,120.2]
[1647004510721,72.05,82.846,82.763,120.2]
[1647004511020,72.05,82.844,82.765,24.9630366]
[1647004511222,18.1142,82.84,82.77,18.1121]
[1647004511422,72.05,82.839,82.77,18.1121]
[1647004512423,72.05,82.843,82.77,18.1121]
[1647004512626,72.05,82.841,82.77,18.1121]
[1647004513747,72.05,82.844,82.77,18.1121]
[1647004514749,6.038,82.856,82.771,120.2]
[1647004514949,6.037,82.862,82.791,120.2]
[1647004515149,72.05,82.867,82.791,120.2]
[1647004515749,78.085,82.867,82.793,120.2]
[1647004515949,6.035,82.862,82.793,120.2]
[1647004516153,24.9523,82.868,82.793,120.2]
[1647004516351,72.05,82.867,82.8,18.106]
[1647004516552,78.085,82.866,82.8,18.106]
[1647004516955,78.085,82.866,82.792,49.22809247]
[1647004517157,198.285,82.866,82.792,49.22809247]
[1647004517355,3.04447957,82.862,82.792,49.22809247]
[1647004517558,86.47,82.86,82.792,49.22809247]
[1647004518058,72.05,82.839,82.792,49.22809247]
[1647004518256,72.05,82.837,82.792,49.22809247]
[1647004519458,72.05,82.849,82.792,49.22809247]
[1647004519659,78.087,82.856,82.792,49.22809247]
[1647004519857,6.037,82.856,82.792,49.22809247]
[1647004520157,24.3925,82.857,82.793,120.2]
[1647004520563,52.17040716,82.856,82.793,120.2]
[1647004520962,23.6781,82.858,82.793,120.2]
[1647004521357,23.6781,82.858,82.8,18.1061]
[1647004521758,23.6781,82.858,82.801,120.2]
[1647004521958,6.035,82.877,82.801,120.2]
[1647004522159,24.3925,82.878,82.802,6.0]
[1647004522359,24.3925,82.878,82.82,18.0998]
[1647004522961,24.3925,82.878,82.821,24.9630366]
[1647004524262,23.3173,82.896,82.822,120.2]
[1647004524670,72.05,82.906,82.823,6.0]
[1647004524671,3.04447957,82.905,82.823,6.0]
[1647004524965,72.05,82.906,82.823,6.0]
[1647004525163,71.55,82.906,82.823,6.0]
[1647004525364,95.2934,82.916,82.825,120.2]
[1647004525561,71.55,82.914,82.826,6.0]
[1647004526162,23.7434,82.916,82.826,6.0]
[1647004526363,47.80253562,82.924,82.831,120.2]
[1647004526563,17.02644264,82.93,82.832,6.0]
[1647004526767,28.92504026,82.931,82.832,6.0]
[1647004526768,6.033,82.939,82.833,120.2]
[1647004526969,6.032,82.941,82.834,6.0]
[1647004527163,28.92504026,82.922,82.834,6.0]
[1647004527364,28.92504026,82.922,82.835,120.2]
[1647004527665,28.92504026,82.922,82.837,120.2]
[1647004527866,17.02644264,82.939,82.841,120.2]
[1647004528065,16.52644264,82.939,82.842,11.99986997]
[1647004528367,3.04447957,82.948,82.843,120.2]
[1647004528567,60.8943786,82.947,82.845,120.2]
[1647004528766,3.04447957,82.948,82.846,6.0]
[1647004528969,6.031,82.955,82.851,120.2]
[1647004529169,3.04447957,82.963,82.853,120.2]
[1647004529369,16.60524264,82.965,82.855,120.2]
[1647004529669,26.67170693,82.954,82.871,120.2]
[1647004529868,53.36839356,82.953,82.872,33.2242216]
[1647004530067,6.03,82.965,82.872,33.2242216]
[1647004530269,6.03,82.976,82.872,33.2242216]
[1647004530467,26.67170693,82.964,82.872,33.2242216]
[1647004530870,18.36457597,82.965,82.873,120.2]
[1647004531068,63.10264907,82.964,82.874,6.0]
[1647004531274,63.10264907,82.964,82.876,120.2]
[1647004531492,89.774356,82.964,82.878,120.2]
[1647004531668,72.05,82.963,82.879,12.029]
[1647004531966,18.36457597,82.965,82.88,126.2]
[1647004532168,18.36457597,82.965,82.882,120.2]
[1647004532369,6.029,82.974,82.883,6.0]
[1647004532570,6.029,82.974,82.884,120.2]
[1647004532767,22.9848,82.975,82.883,28.5329]
[1647004532768,22.9848,82.975,82.886,120.2]
[1647004532967,22.9848,82.975,82.888,167.16690747]
[1647004533168,22.9848,82.975,82.89,120.2]
[1647004533368,22.9848,82.975,82.888,46.96690747]
[1647004533369,22.9848,82.975,82.892,120.2]
[1647004533573,6.027,82.993,82.894,120.2]
[1647004533766,44.1522829,82.994,82.896,120.2]
[1647004533971,44.1522829,82.994,82.898,120.2]
[1647004534170,28.23170693,83.006,82.911,120.2]
[1647004534368,15.66057597,83.009,82.911,120.2]
[1647004534369,15.66057597,83.009,82.913,120.2]
[1647004534571,3.04447957,83.025,82.915,120.2]
[1647004534768,3.04447957,83.025,82.931,120.2]
[1647004534968,3.04447957,83.025,82.932,12.025]
[1647004535367,47.14988663,83.02,82.933,46.96690747]
[1647004535570,47.14988663,83.02,82.934,12.025]
[1647004535771,29.52062415,83.024,82.934,15.06947957]
[1647004535970,6.25960148,83.036,82.934,15.06947957]
[1647004536274,6.025,83.047,82.935,127.80156721]
[1647004536470,25.63170693,83.048,82.951,120.2]
[1647004536670,53.28167319,83.044,82.953,27.2242216]
[1647004536870,3.04447957,83.07,82.953,27.2242216]
[1647004536871,30.94719772,83.029,82.953,27.2242216]
[1647004537072,6.024,83.028,82.953,27.2242216]
[1647004537275,34.69463983,83.028,82.953,27.2242216]
[1647004537473,3.04447957,83.027,82.953,27.2242216]
[1647004537673,6.024,83.026,82.934,49.3099]
[1647004537874,58.24413817,83.026,82.934,49.3099]
[1647004538074,75.09447957,83.025,82.9,37.3181]
[1647004538273,72.05,83.023,82.901,6.026]
[1647004538476,14.42,83.01,82.901,6.026]
[1647004538674,72.05,82.999,82.902,54.24769706]
[1647004538879,72.05,82.999,82.903,6.027]
[1647004539075,35.57565058,82.989,82.903,6.027]
[1647004539476,25.62616026,82.988,82.903,6.027]
[1647004539680,6.027,82.987,82.903,6.027]
[1647004539877,38.62013015,82.989,82.903,6.027]
[1647004540277,6.027,82.988,82.902,54.24769706]
[1647004540583,35.57565058,82.989,82.904,120.2]
[1647004540776,35.57565058,82.989,82.906,120.2]
[1647004540978,35.57565058,82.989,82.91,14.42]
[1647004541180,35.57565058,82.989,82.911,6.027]
[1647004541381,35.57565058,82.989,82.91,14.42]
[1647004541577,6.027,82.988,82.902,54.24769706]
[1647004541776,6.027,82.988,82.903,6.027]
[1647004542178,28.67063983,82.987,82.902,54.24769706]
[1647004542377,6.027,82.986,82.902,54.24769706]
[1647004542580,18.0919,82.94,82.888,6.027]
[1647004542879,72.05,82.959,82.872,6.03]
[1647004543087,28.67063983,82.939,82.851,6.029]
[1647004543281,28.67063983,82.939,82.824,29.6762]
[1647004543479,6.03,82.948,82.858,52.56044581]
[1647004543480,77.32386016,82.938,82.858,52.56044581]
[1647004543681,18.0958,82.92,82.858,52.56044581]
[1647004543883,35.57565058,82.919,82.871,21.63068326]
[1647004544283,35.57565058,82.919,82.826,120.2]
[1647004544480,35.57565058,82.919,82.828,120.2]
[1647004544682,35.57565058,82.919,82.824,23.6462]
[1647004544881,18.0987,82.91,82.824,23.6462]
[1647004545181,72.05,82.909,82.825,56.31047159]
[1647004545383,72.05,82.905,82.823,74.2815]
[1647004545583,120.2,82.904,82.812,6.033]
[1647004545782,120.2,82.896,82.796,6.034]
[1647004545983,72.05,82.887,82.781,49.3246]
[1647004546182,18.107,82.87,82.781,49.3246]
[1647004546387,41.94322033,82.869,82.782,72.80056646]
[1647004546606,41.94322033,82.869,82.783,6.035]
[1647004546804,41.94322033,82.869,82.783,18.08202496]
[1647004547007,41.94322033,82.869,82.784,126.2]
[1647004547208,41.94322033,82.869,82.786,120.2]
[1647004547409,41.94322033,82.869,82.788,120.2]
[1647004547606,41.94322033,82.869,82.79,120.2]
[1647004547806,41.94322033,82.869,82.792,120.2]
[1647004548005,41.94322033,82.869,82.795,20.14758757]
[1647004548207,41.94322033,82.869,82.796,132.235]
[1647004548409,72.05,82.897,82.796,132.235]
[1647004548612,6.035,82.896,82.796,129.24447957]